[Event "POL-chT 2 Liga 2019"]
[Site "Poronin"]
[Date "2019.09.13"]
[Round "7.7"]
[White "Bator, Robert"]
[Black "Oglaza, Oskar"]
[Result "1/2-1/2"]
[ECO "A05"]
[WhiteElo "2358"]
[BlackElo "2351"]
[Annotator "NA"]
[PlyCount "85"]
[EventDate "2019.09.07"]
[EventType "team-tourn"]
[EventCountry "POL"]
[SourceTitle "playchess.com"]
[Source "ChessBase"]
[SourceQuality "1"]
[TimeControl "40/5400+30:1800+30"]

1. Nf3 {[%emt 0:01:47]} Nf6 {[%emt 0:00:00]} 2. c4 {[%emt 0:00:19]} e6 {[%emt 0:00:00]} 3. g3 {[%emt 0:01:06]} a6 {[%emt 0:00:17]} 4. Bg2 {[%emt 0:02:30]} c5 {[%emt 0:00:10]} 5. O-O {[%emt 0:00:37]} Be7 {[%emt 0:01:14]} 6. Nc3 {[%emt 0:03:40]} O-O {[%emt 0:00:24]} 7. d4 {[%emt 0:04:10]} cxd4 {[%emt 0:00:04]} 8. Nxd4 {[%emt 0:01:40]} Qc7 {[%emt 0:00:03]} 9. Qd3 {[%emt 0:01:04]} Nc6 {[%emt 0:00:04]} 10. b3 {[%emt 0:04:47]} Rb8 {[%emt 0:14:36]} 11. Bb2 {[%emt 0:26:59]} Nxd4 {[%emt 0:10:43]} 12. Qxd4 {[%emt 0:00:09]} b5 {[%emt 0:00:01]} 13. cxb5 {[%emt 0:07:22]} axb5 {[%emt 0:01:01]} 14. Rfc1 {[%emt 0:00:33]} Qa5 {[%emt 0:01:29]} 15. a3 {[%emt 0:01:26]} b4 {[%emt 0:05:55]} 16. axb4 {[%emt 0:01:15]} Qxb4 {[%emt 0:00:05]} 17. Qxb4 {[%emt 0:02:08]} Bxb4 {[%emt 0:00:02]} 18. Ne4 {[%emt 0:03:09]} Nxe4 {[%emt 0:04:56]} 19. Bxe4 {[%emt 0:00:07]} Bb7 {[%emt 0:00:10]} 20. Bxb7 {[%emt 0:01:26]} Rxb7 {[%emt 0:00:04]} 21. Ba3 {[%emt 0:00:28]} Bxa3 {[%emt 0:00:40]} 22. Rxa3 {[%emt 0:00:05]} Rfb8 {[%emt 0:00:20]} 23. Rc3 {[%emt 0:01:25]} g5 {[%emt 0:03:03]} 24. h3 {[%emt 0:00:28]} Kg7 {[%emt 0:00:23]} 25. Kf1 {[%emt 0:00:12]} Kf6 {[%emt 0:03:23]} 26. e3 {[%emt 0:00:20]} d5 {[%emt 0:01:11]} 27. Ke2 {[%emt 0:00:12]} h5 {[%emt 0:00:12]} 28. Kd3 {[%emt 0:00:20]} Ke5 {[%emt 0:00:41]} 29. f3 {[%emt 0:06:34]} Rb4 {[%emt 0:12:30]} 30. Ra7 {[%emt 0:02:17]} f6 {[%emt 0:00:07]} 31. Rh7 {[%emt 0:08:24]} Rxb3 {[%emt 0:05:10]} 32. Rxh5 {[%emt 0:01:23]} Rxc3+ {[%emt 0:02:03]} 33. Kxc3 {[%emt 0:00:06]} Kf5 {[%emt 0:00:02]} 34. h4 {[%emt 0:01:25]} Kg6 {[%emt 0:00:07]} 35. g4 {[%emt 0:00:05]} gxh4 {[%emt 0:07:09]} 36. Rxh4 {[%emt 0:00:14]} Rb1 {[%emt 0:00:03]} 37. Kd3 {[%emt 0:00:49]} e5 {[%emt 0:00:28]} 38. Rh8 {[%emt 0:00:31]} Rb3+ {[%emt 0:00:18]} 39. Ke2 {[%emt 0:01:18]} Rb2+ {[%emt 0:00:03]} 40. Ke1 {[%emt 0:00:00]} Kf7 {[%emt 0:00:00]} 41. Rd8 {[%emt 0:01:23]} Ke6 {[%emt 0:02:50]} 42. Kf1 {[%emt 0:01:51]} Ra2 {[%emt 0:01:22]} 43. Ke1 {[%emt 0:01:42]} 1/2-1/2

[Event "POL-chT 2 Liga 2019"]
[Site "Poronin"]
[Date "2019.09.13"]
[Round "7.8"]
[White "Pacan-Milej, Kosma"]
[Black "Marszalek, Maciej"]
[Result "0-1"]
[ECO "A56"]
[WhiteElo "2287"]
[BlackElo "2301"]
[Annotator "NA"]
[PlyCount "66"]
[EventDate "2019.09.07"]
[EventType "team-tourn"]
[EventCountry "POL"]
[SourceTitle "playchess.com"]
[Source "ChessBase"]
[SourceQuality "1"]
[TimeControl "40/5400+30:1800+30"]

1. d4 {[%emt 0:00:00]} Nf6 {[%emt 0:00:00]} 2. c4 {[%emt 0:00:00]} c5 {[%emt 0:00:16]} 3. d5 {[%emt 0:00:00]} g6 {[%emt 0:00:41]} 4. Nc3 {[%emt 0:00:04]} d6 {[%emt 0:00:12]} 5. e4 {[%emt 0:02:43]} Bg7 {[%emt 0:00:14]} 6. Nf3 {[%emt 0:00:57]} O-O {[%emt 0:00:10]} 7. Be2 {[%emt 0:00:04]} e6 {[%emt 0:00:30]} 8. Be3 {[%emt 0:00:21]} exd5 {[%emt 0:00:25]} 9. cxd5 {[%emt 0:00:05]} Re8 {[%emt 0:02:32]} 10. Nd2 {[%emt 0:00:23]} Nbd7 {[%emt 0:01:48]} 11. O-O {[%emt 0:00:56]} a6 {[%emt 0:00:56]} 12. a4 {[%emt 0:00:08]} Rb8 {[%emt 0:07:00]} 13. Qc2 {[%emt 0:05:19]} h6 {[%emt 0:07:18]} 14. h3 {[%emt 0:16:39]} g5 {[%emt 0:03:05]} 15. Rab1 {[%emt 0:06:49]} Ne5 {[%emt 0:01:38]} 16. b4 {[%emt 0:00:19]} cxb4 {[%emt 0:03:32]} 17. Rxb4 {[%emt 0:00:06]} g4 {[%emt 0:02:28]} 18. Bb6 {[%emt 0:11:55]} Qe7 {[%emt 0:06:33]} 19. hxg4 {[%emt 0:04:47]} Bxg4 {[%emt 0:02:40]} 20. Bxg4 {[%emt 0:02:52]} Nfxg4 {[%emt 0:00:38]} 21. f3 {[%emt 0:05:04]} Nd7 {[%emt 0:02:17]} 22. fxg4 {[%emt 0:03:31]} Nxb6 {[%emt 0:00:26]} 23. Ne2 {[%emt 0:01:03]} Nxd5 {[%emt 0:01:41]} 24. exd5 {[%emt 0:00:04]} Qxe2 {[%emt 0:00:03]} 25. Rc4 {[%emt 0:05:21]} b5 {[%emt 0:05:26]} 26. Rc7 {[%emt 0:05:09]} Bd4+ {[%emt 0:13:26]} 27. Kh2 {[%emt 0:00:16]} Qxg4 {[%emt 0:03:13]} 28. Nf3 {[%emt 0:01:22]} Qh5+ {[%emt 0:00:45]} 29. Kg3 {[%emt 0:00:02]} Bg7 {[%emt 0:10:31]} 30. Qc6 {[%emt 0:01:18]} Qg6+ {[%emt 0:00:43]} 31. Kh2 {[%emt 0:00:09]} bxa4 {[%emt 0:02:14]} 32. Nh4 {[%emt 0:02:46]} Qg4 {[%emt 0:05:10]} 33. Nf5 {[%emt 0:00:22]} Re2 {[%emt 0:02:07]} 0-1

[Event "POL-chT 2 Liga 2019"]
[Site "Poronin"]
[Date "2019.09.13"]
[Round "7.9"]
[White "Brzeski, Maciej"]
[Black "Licznerski, Lukasz"]
[Result "1-0"]
[ECO "B17"]
[WhiteElo "2339"]
[BlackElo "2356"]
[Annotator "NA"]
[PlyCount "77"]
[EventDate "2019.09.07"]
[EventType "team-tourn"]
[EventCountry "POL"]
[SourceTitle "playchess.com"]
[Source "ChessBase"]
[SourceQuality "1"]
[TimeControl "40/5400+30:1800+30"]

1. e4 {[%emt 0:00:00]} c6 {[%emt 0:00:45]} 2. d4 {[%emt 0:00:00]} d5 {[%emt 0:00:01]} 3. Nc3 {[%emt 0:00:00]} dxe4 {[%emt 0:00:07]} 4. Nxe4 {[%emt 0:00:00]} Nd7 {[%emt 0:00:05]} 5. Ng5 {[%emt 0:00:09]} Ngf6 {[%emt 0:01:41]} 6. Bd3 {[%emt 0:00:19]} e6 {[%emt 0:00:02]} 7. N1f3 {[%emt 0:00:21]} Bd6 {[%emt 0:00:03]} 8. Qe2 {[%emt 0:00:09]} h6 {[%emt 0:00:04]} 9. Ne4 {[%emt 0:00:06]} Nxe4 {[%emt 0:00:04]} 10. Qxe4 {[%emt 0:00:02]} Qc7 {[%emt 0:00:06]} 11. O-O {[%emt 0:05:37]} b6 {[%emt 0:00:01]} 12. Qg4 {[%emt 0:01:10]} Kf8 {[%emt 0:00:02]} 13. b3 {[%emt 0:35:06]} Bb7 {[%emt 0:00:19]} 14. Bb2 {[%emt 0:00:16]} Nf6 {[%emt 0:00:02]} 15. Qh3 {[%emt 0:01:47]} Nd5 {[%emt 0:00:02]} 16. Ne5 {[%emt 0:02:39]} Nf4 {[%emt 0:14:56]} 17. Qe3 {[%emt 0:01:48]} Nxd3 {[%emt 0:05:43]} 18. Qxd3 {[%emt 0:00:10]} Rd8 {[%emt 0:07:24]} 19. Qg3 {[%emt 0:20:55]} h5 {[%emt 0:03:32]} 20. f4 {[%emt 0:04:20]} h4 {[%emt 0:01:33]} 21. Qh3 {[%emt 0:00:34]} c5 {[%emt 0:00:46]} 22. f5 {[%emt 0:02:03]} Bxe5 {[%emt 0:04:05]} 23. dxe5 {[%emt 0:00:03]} exf5 {[%emt 0:06:09]} 24. Qxf5 {[%emt 0:02:28]} Rd2 {[%emt 0:00:07]} 25. Rf2 {[%emt 0:00:40]} Rxf2 {[%emt 0:00:03]} 26. Qxf2 {[%emt 0:01:58]} Rh6 {[%emt 0:00:26]} 27. Rd1 {[%emt 0:00:46]} h3 {[%emt 0:17:01]} 28. Bc1 {[%emt 0:15:22]} Rg6 {[%emt 0:01:16]} 29. Qh4 {[%emt 0:00:15]} Rxg2+ {[%emt 0:10:00]} 30. Kf1 {[%emt 0:00:00]} Ke8 {[%emt 0:16:08]} 31. Bg5 {[%emt 0:00:39]} Rxg5 {[%emt 0:03:43]} 32. Qxg5 {[%emt 0:00:03]} c4 {[%emt 0:00:01]} 33. Qxg7 {[%emt 0:02:15]} Bg2+ {[%emt 0:01:01]} 34. Ke1 {[%emt 0:00:11]} cxb3 {[%emt 0:00:16]} 35. Qh8+ {[%emt 0:00:05]} Ke7 {[%emt 0:00:03]} 36. Qf6+ {[%emt 0:00:07]} Ke8 {[%emt 0:00:01]} 37. Qh8+ {[%emt 0:00:11]} Ke7 {[%emt 0:00:01]} 38. Qf6+ {[%emt 0:00:12]} Ke8 {[%emt 0:00:15]} 39. e6 {[%emt 0:00:32]} 1-0

[Event "POL-chT 2 Liga 2019"]
[Site "Poronin"]
[Date "2019.09.13"]
[Round "7.10"]
[White "Punin, Andrii"]
[Black "Jaskolka, Tomasz"]
[Result "1-0"]
[ECO "C06"]
[WhiteElo "2325"]
[BlackElo "2236"]
[Annotator "NA"]
[PlyCount "83"]
[EventDate "2019.09.07"]
[EventType "team-tourn"]
[EventCountry "POL"]
[SourceTitle "playchess.com"]
[Source "ChessBase"]
[SourceQuality "1"]
[TimeControl "40/5400+30:1800+30"]

1. e4 {[%emt 0:00:00]} e6 {[%emt 0:00:00]} 2. d4 {[%emt 0:00:00]} d5 {[%emt 0:00:00]} 3. Nd2 {[%emt 0:00:00]} Nf6 {[%emt 0:00:00]} 4. e5 {[%emt 0:00:00]} Nfd7 {[%emt 0:00:00]} 5. Bd3 {[%emt 0:00:03]} c5 {[%emt 0:00:04]} 6. c3 {[%emt 0:00:07]} Nc6 {[%emt 0:00:06]} 7. Ne2 {[%emt 0:00:20]} cxd4 {[%emt 0:00:04]} 8. cxd4 {[%emt 0:00:08]} f6 {[%emt 0:00:06]} 9. exf6 {[%emt 0:00:08]} Nxf6 {[%emt 0:00:04]} 10. Nf3 {[%emt 0:00:55]} Bd6 {[%emt 0:00:05]} 11. O-O {[%emt 0:00:29]} Qc7 {[%emt 0:00:04]} 12. Nc3 {[%emt 0:00:15]} a6 {[%emt 0:00:04]} 13. h3 {[%emt 0:00:32]} O-O {[%emt 0:00:21]} 14. Re1 {[%emt 0:00:27]} Bd7 {[%emt 0:01:54]} 15. Bd2 {[%emt 0:00:11]} Qb6 {[%emt 0:14:08]} 16. Be3 {[%emt 0:05:00]} Rae8 {[%emt 0:13:23]} 17. a3 {[%emt 0:03:17]} Kh8 {[%emt 0:18:35]} 18. b4 {[%emt 0:02:22]} Qc7 {[%emt 0:09:38]} 19. Rc1 {[%emt 0:00:22]} b5 {[%emt 0:10:22]} 20. Ne5 {[%emt 0:05:55]} Bxe5 {[%emt 0:04:20]} 21. dxe5 {[%emt 0:00:19]} Qxe5 {[%emt 0:01:01]} 22. Bc5 {[%emt 0:00:31]} Qg5 {[%emt 0:00:22]} 23. Bxf8 {[%emt 0:00:29]} Rxf8 {[%emt 0:00:07]} 24. Bf1 {[%emt 0:05:07]} Ne5 {[%emt 0:11:05]} 25. Qe2 {[%emt 0:03:15]} Nc4 {[%emt 0:04:46]} 26. Rcd1 {[%emt 0:02:36]} Nh5 {[%emt 0:05:59]} 27. Qg4 {[%emt 0:03:03]} Qxg4 {[%emt 0:02:07]} 28. hxg4 {[%emt 0:00:08]} Nf6 {[%emt 0:00:09]} 29. g5 {[%emt 0:03:16]} Ne8 {[%emt 0:00:52]} 30. Nxd5 {[%emt 0:04:55]} exd5 {[%emt 0:00:20]} 31. Bxc4 {[%emt 0:00:08]} bxc4 {[%emt 0:00:24]} 32. Rxd5 {[%emt 0:00:06]} Bb5 {[%emt 0:01:06]} 33. Re7 {[%emt 0:04:42]} Kg8 {[%emt 0:00:53]} 34. Rd8 {[%emt 0:02:15]} g6 {[%emt 0:00:54]} 35. Rc8 {[%emt 0:06:20]} Nd6 {[%emt 0:01:36]} 36. Rc5 {[%emt 0:02:17]} Nf5 {[%emt 0:01:03]} 37. Ra7 {[%emt 0:02:16]} Nd6 {[%emt 0:01:20]} 38. a4 {[%emt 0:01:24]} Ne4 {[%emt 0:00:52]} 39. Rcc7 {[%emt 0:00:34]} Rxf2 {[%emt 0:00:40]} 40. axb5 {[%emt 0:00:00]} axb5 {[%emt 0:00:00]} 41. Re7 {[%emt 0:01:41]} Rf4 {[%emt 0:01:21]} 42. Ra8+ {[%emt 0:00:41]} 1-0

[Event "POL-chT 2 Liga 2019"]
[Site "Poronin"]
[Date "2019.09.13"]
[Round "7.11"]
[White "Pulik, Krzysztof"]
[Black "Kowalczyk, Pawel"]
[Result "0-1"]
[ECO "B06"]
[WhiteElo "2131"]
[BlackElo "2294"]
[Annotator "NA"]
[PlyCount "160"]
[EventDate "2019.09.07"]
[EventType "team-tourn"]
[EventCountry "POL"]
[SourceTitle "playchess.com"]
[Source "ChessBase"]
[SourceQuality "1"]
[TimeControl "40/5400+30:1800+30"]

1. e4 {[%emt 0:00:00]} g6 {[%emt 0:00:00]} 2. d4 {[%emt 0:00:00]} Bg7 {[%emt 0:00:00]} 3. c3 {[%emt 0:00:16]} d6 {[%emt 0:00:54]} 4. Nf3 {[%emt 0:00:54]} Nf6 {[%emt 0:00:18]} 5. Bd3 {[%emt 0:02:57]} O-O {[%emt 0:00:08]} 6. O-O {[%emt 0:00:30]} e5 {[%emt 0:02:27]} 7. Nbd2 {[%emt 0:01:14]} Nc6 {[%emt 0:00:21]} 8. Re1 {[%emt 0:02:32]} Nh5 {[%emt 0:07:24]} 9. dxe5 {[%emt 0:01:22]} dxe5 {[%emt 0:00:28]} 10. Qc2 {[%emt 0:08:25]} Nf4 {[%emt 0:00:30]} 11. Bf1 {[%emt 0:02:29]} Bg4 {[%emt 0:00:04]} 12. h3 {[%emt 0:00:41]} Be6 {[%emt 0:00:07]} 13. Nc4 {[%emt 0:01:12]} Qf6 {[%emt 0:00:34]} 14. Nh2 {[%emt 0:07:14]} Rad8 {[%emt 0:01:38]} 15. Ne3 {[%emt 0:03:42]} Rd7 {[%emt 0:07:07]} 16. Neg4 {[%emt 0:03:23]} Qe7 {[%emt 0:01:34]} 17. g3 {[%emt 0:02:32]} Nh5 {[%emt 0:01:08]} 18. Nf3 {[%emt 0:06:04]} Rfd8 {[%emt 0:07:58]} 19. Ng5 {[%emt 0:05:58]} Bxg4 {[%emt 0:03:45]} 20. hxg4 {[%emt 0:00:06]} Nf6 {[%emt 0:00:05]} 21. Bc4 {[%emt 0:01:38]} Qf8 {[%emt 0:01:07]} 22. Qe2 {[%emt 0:03:54]} Na5 {[%emt 0:04:11]} 23. Bb3 {[%emt 0:03:29]} a6 {[%emt 0:00:36]} 24. Nh3 {[%emt 0:03:49]} Nxb3 {[%emt 0:00:34]} 25. axb3 {[%emt 0:00:06]} Qd6 {[%emt 0:01:13]} 26. g5 {[%emt 0:04:38]} Ne8 {[%emt 0:00:58]} 27. Kg2 {[%emt 0:01:07]} Bf8 {[%emt 0:01:59]} 28. Be3 {[%emt 0:03:41]} Ng7 {[%emt 0:04:34]} 29. Ng1 {[%emt 0:02:05]} Ne6 {[%emt 0:03:58]} 30. Ra5 {[%emt 0:04:11]} c5 {[%emt 0:00:36]} 31. Nf3 {[%emt 0:02:32]} Qc7 {[%emt 0:02:13]} 32. Raa1 {[%emt 0:00:20]} Be7 {[%emt 0:01:52]} 33. Red1 {[%emt 0:04:25]} Qc6 {[%emt 0:00:49]} 34. Rxd7 {[%emt 0:00:27]} Rxd7 {[%emt 0:00:07]} 35. Qc2 {[%emt 0:00:20]} f6 {[%emt 0:01:48]} 36. gxf6 {[%emt 0:00:55]} Bxf6 {[%emt 0:00:02]} 37. Nh2 {[%emt 0:00:32]} h5 {[%emt 0:00:51]} 38. f3 {[%emt 0:00:58]} Qd6 {[%emt 0:00:20]} 39. Re1 {[%emt 0:03:21]} Bg5 {[%emt 0:06:11]} 40. Nf1 {[%emt 0:00:00]} Bxe3 {[%emt 0:00:00]} 41. Nxe3 {[%emt 0:02:53]} Ng5 {[%emt 0:01:48]} 42. Rd1 {[%emt 0:05:31]} Qe6 {[%emt 0:00:10]} 43. Rxd7 {[%emt 0:01:14]} Qxd7 {[%emt 0:00:40]} 44. Qd1 {[%emt 0:01:37]} Qh3+ {[%emt 0:00:07]} 45. Kf2 {[%emt 0:00:14]} Kh7 {[%emt 0:00:22]} 46. Ng2 {[%emt 0:08:45]} Qh2 {[%emt 0:03:50]} 47. Qd7+ {[%emt 0:05:28]} Kh6 {[%emt 0:00:02]} 48. Qd2 {[%emt 0:02:57]} Qh1 {[%emt 0:00:09]} 49. Nh4 {[%emt 0:01:52]} Qh2+ {[%emt 0:02:51]} 50. Ng2 {[%emt 0:00:33]} b6 {[%emt 0:01:26]} 51. Qc1 {[%emt 0:01:24]} Qh3 {[%emt 0:02:04]} 52. Qd2 {[%emt 0:00:25]} Qh2 {[%emt 0:03:09]} 53. Qc1 {[%emt 0:00:53]} Qh3 {[%emt 0:03:03]} 54. Qd2 {[%emt 0:00:01]} Qe6 {[%emt 0:00:09]} 55. c4 {[%emt 0:01:28]} Qf6 {[%emt 0:01:31]} 56. Nh4 {[%emt 0:00:43]} Kg7 {[%emt 0:06:28]} 57. Qd7+ {[%emt 0:00:12]} Nf7 58. Ng2 {[%emt 0:01:05]} Qd6 {[%emt 0:01:49]} 59. Qxd6 {[%emt 0:00:44]} Nxd6 {[%emt 0:00:02]} 60. Ke3 {[%emt 0:06:16]} g5 {[%emt 0:01:01]} 61. Kd3 {[%emt 0:03:04]} b5 {[%emt 0:04:42]} 62. cxb5 {[%emt 0:03:02]} axb5 {[%emt 0:00:02]} 63. Ke2 {[%emt 0:01:10]} Kf6 {[%emt 0:00:51]} 64. Ne3 {[%emt 0:01:57]} b4 {[%emt 0:08:25]} 65. Nd5+ {[%emt 0:01:41]} Kf7 {[%emt 0:00:27]} 66. Nb6 {[%emt 0:02:38]} Ke6 {[%emt 0:00:12]} 67. Nc4 {[%emt 0:00:35]} Nb5 {[%emt 0:07:03]} 68. Nd2 {[%emt 0:00:06]} Kf6 {[%emt 0:00:32]} 69. Ke3 {[%emt 0:00:33]} h4 {[%emt 0:06:27]} 70. Kf2 {[%emt 0:00:03]} Nc3 {[%emt 0:00:29]} 71. Kg2 {[%emt 0:00:44]} Ne2 {[%emt 0:01:07]} 72. Nf1 {[%emt 0:01:05]} Nc1 {[%emt 0:00:49]} 73. Nd2 {[%emt 0:00:12]} Nd3 {[%emt 0:00:41]} 74. Kh3 {[%emt 0:01:05]} hxg3 {[%emt 0:00:38]} 75. Kxg3 {[%emt 0:00:01]} Nxb2 {[%emt 0:00:01]} 76. Kg4 {[%emt 0:00:20]} Nd3 {[%emt 0:01:20]} 77. Kh5 {[%emt 0:00:28]} Nf4+ {[%emt 0:00:44]} 78. Kh6 {[%emt 0:00:16]} Ne2 {[%emt 0:01:16]} 79. Kh5 {[%emt 0:00:07]} Nd4 {[%emt 0:00:19]} 80. Kh6 {[%emt 0:00:19]} Nxf3 {[%emt 0:03:42]} 0-1

[Event "POL-chT 2 Liga 2019"]
[Site "Poronin"]
[Date "2019.09.13"]
[Round "7.12"]
[White "Starosta, Martyna"]
[Black "Lukasiewicz, Anna"]
[Result "1/2-1/2"]
[ECO "B19"]
[WhiteElo "1814"]
[BlackElo "2075"]
[Annotator "NA"]
[PlyCount "162"]
[EventDate "2019.09.07"]
[EventType "team-tourn"]
[EventCountry "POL"]
[SourceTitle "playchess.com"]
[Source "ChessBase"]
[SourceQuality "1"]
[TimeControl "40/5400+30:1800+30"]

1. e4 {[%emt 0:00:00]} c6 {[%emt 0:00:00]} 2. d4 {[%emt 0:00:00]} d5 {[%emt 0:00:00]} 3. Nc3 {[%emt 0:00:00]} dxe4 {[%emt 0:00:09]} 4. Nxe4 {[%emt 0:00:00]} Bf5 {[%emt 0:00:13]} 5. Ng3 {[%emt 0:00:04]} Bg6 {[%emt 0:00:17]} 6. h4 {[%emt 0:00:19]} h6 {[%emt 0:00:18]} 7. Nf3 {[%emt 0:00:15]} Nd7 {[%emt 0:00:56]} 8. h5 {[%emt 0:00:09]} Bh7 {[%emt 0:00:10]} 9. Bd3 {[%emt 0:00:08]} Bxd3 {[%emt 0:00:21]} 10. Qxd3 {[%emt 0:00:16]} e6 {[%emt 0:00:30]} 11. Bd2 {[%emt 0:01:13]} Ngf6 {[%emt 0:00:47]} 12. O-O-O {[%emt 0:00:36]} Be7 {[%emt 0:00:56]} 13. Nf1 {[%emt 0:01:41]} Qb6 {[%emt 0:10:37]} 14. Ne3 {[%emt 0:03:47]} O-O-O {[%emt 0:07:07]} 15. c4 {[%emt 0:08:27]} Qa6 {[%emt 0:10:38]} 16. Kb1 {[%emt 0:02:29]} Nd5 {[%emt 0:09:24]} 17. Qc2 {[%emt 0:05:43]} Nxe3 {[%emt 0:08:16]} 18. fxe3 {[%emt 0:03:59]} Kb8 {[%emt 0:07:50]} 19. e4 {[%emt 0:02:24]} f5 {[%emt 0:02:08]} 20. Bf4+ {[%emt 0:06:51]} Ka8 {[%emt 0:00:26]} 21. exf5 {[%emt 0:03:01]} exf5 {[%emt 0:01:03]} 22. Qxf5 {[%emt 0:03:32]} Nf6 {[%emt 0:07:46]} 23. Ne5 {[%emt 0:04:06]} Rhe8 {[%emt 0:03:42]} 24. Rhe1 {[%emt 0:03:47]} Qa5 {[%emt 0:03:06]} 25. Qg6 {[%emt 0:03:02]} Rxd4 {[%emt 0:05:20]} 26. Qxg7 {[%emt 0:13:00]} Rxf4 {[%emt 0:03:01]} 27. Ng6 {[%emt 0:02:33]} Re4 {[%emt 0:14:10]} 28. Rxe4 {[%emt 0:00:46]} Nxe4 {[%emt 0:00:05]} 29. Nxe7 {[%emt 0:00:28]} Nd2+ {[%emt 0:01:50]} 30. Kc1 {[%emt 0:01:26]} Nxc4 {[%emt 0:01:13]} 31. Qf7 {[%emt 0:03:57]} Qg5+ {[%emt 0:00:27]} 32. Kb1 {[%emt 0:00:18]} Rb8 {[%emt 0:00:11]} 33. Qxc4 {[%emt 0:01:17]} Qxe7 {[%emt 0:00:06]} 34. Qf4 {[%emt 0:00:44]} Qe2 {[%emt 0:00:43]} 35. Qf3 {[%emt 0:01:07]} Qe5 {[%emt 0:00:26]} 36. a3 {[%emt 0:02:48]} a6 {[%emt 0:00:03]} 37. Qg4 {[%emt 0:02:00]} Rf8 {[%emt 0:01:05]} 38. Ka1 {[%emt 0:01:03]} Rf4 {[%emt 0:02:12]} 39. Qg6 {[%emt 0:01:40]} Rf6 {[%emt 0:00:59]} 40. Qg4 {[%emt 0:00:00]} c5 {[%emt 0:00:00]} 41. Qg8+ {[%emt 0:05:56]} Ka7 {[%emt 0:00:35]} 42. g4 {[%emt 0:00:48]} Rb6 {[%emt 0:06:45]} 43. Rb1 {[%emt 0:01:12]} Qe3 {[%emt 0:02:15]} 44. Qd5 {[%emt 0:01:45]} Rf6 {[%emt 0:09:45]} 45. Rh1 {[%emt 0:03:50]} Rf4 {[%emt 0:01:14]} 46. g5 {[%emt 0:04:23]} Rf2 {[%emt 0:00:19]} 47. gxh6 {[%emt 0:07:16]} Rd2 {[%emt 0:00:49]} 48. Qc4 {[%emt 0:03:24]} Qxh6 {[%emt 0:03:09]} 49. Qxc5+ {[%emt 0:00:48]} Ka8 {[%emt 0:01:37]} 50. Qe5 {[%emt 0:07:07]} Rg2 {[%emt 0:02:32]} 51. Rd1 {[%emt 0:02:14]} Rg8 {[%emt 0:00:21]} 52. Rh1 {[%emt 0:02:48]} Rc8 {[%emt 0:01:34]} 53. Ka2 {[%emt 0:03:03]} Qc6 {[%emt 0:00:55]} 54. Re1 {[%emt 0:01:51]} Qc4+ {[%emt 0:00:16]} 55. Ka1 {[%emt 0:00:20]} Qh4 {[%emt 0:00:25]} 56. Rd1 {[%emt 0:01:27]} Rf8 {[%emt 0:00:47]} 57. Qg7 {[%emt 0:01:40]} Rf6 {[%emt 0:01:04]} 58. Qg8+ {[%emt 0:00:51]} Ka7 {[%emt 0:00:08]} 59. Qg1+ {[%emt 0:00:23]} Qf2 {[%emt 0:02:09]} 60. Qxf2+ {[%emt 0:02:27]} Rxf2 {[%emt 0:00:05]} 61. Rd8 {[%emt 0:00:39]} Rh2 {[%emt 0:00:11]} 62. Rh8 {[%emt 0:00:18]} Kb6 {[%emt 0:00:37]} 63. h6 {[%emt 0:00:11]} a5 {[%emt 0:02:03]} 64. Kb1 {[%emt 0:03:03]} Ka7 {[%emt 0:00:26]} 65. h7 {[%emt 0:00:24]} b6 {[%emt 0:00:44]} 66. Kc1 {[%emt 0:00:38]} Kb7 {[%emt 0:00:05]} 67. Kd1 {[%emt 0:00:14]} Ka7 {[%emt 0:00:01]} 68. Ke1 {[%emt 0:00:07]} Kb7 {[%emt 0:00:06]} 69. Kf1 {[%emt 0:00:04]} Ka7 {[%emt 0:00:07]} 70. Kg1 {[%emt 0:00:05]} Rh5 {[%emt 0:00:14]} 71. Kg2 {[%emt 0:00:20]} Kb7 {[%emt 0:00:07]} 72. b4 {[%emt 0:00:42]} axb4 {[%emt 0:00:11]} 73. axb4 {[%emt 0:00:07]} Ka7 {[%emt 0:00:19]} 74. Kg3 {[%emt 0:00:06]} Kb7 {[%emt 0:00:12]} 75. Kf4 {[%emt 0:00:29]} Rh1 {[%emt 0:00:09]} 76. Ke4 {[%emt 0:00:09]} Rh4+ {[%emt 0:00:11]} 77. Kd5 {[%emt 0:00:27]} Rh1 {[%emt 0:00:24]} 78. Kc4 {[%emt 0:00:37]} Rh4+ {[%emt 0:00:13]} 79. Kb5 {[%emt 0:00:05]} Rh5+ {[%emt 0:00:10]} 80. Ka4 {[%emt 0:00:20]} Rh3 {[%emt 0:00:09]} 81. Rd8 Rg3 1/2-1/2

[Event "POL-chT 2 Liga 2019"]
[Site "Poronin"]
[Date "2019.09.13"]
[Round "7.13"]
[White "Molenda, Marcin"]
[Black "Maciejczak, Jakub"]
[Result "0-1"]
[ECO "E09"]
[WhiteElo "2373"]
[BlackElo "2383"]
[Annotator "NA"]
[PlyCount "66"]
[EventDate "2019.09.07"]
[EventType "team-tourn"]
[EventCountry "POL"]
[SourceTitle "playchess.com"]
[Source "ChessBase"]
[SourceQuality "1"]
[TimeControl "40/5400+30:1800+30"]

1. d4 {[%emt 0:00:00]} d5 {[%emt 0:00:00]} 2. c4 {[%emt 0:00:00]} e6 {[%emt 0:00:09]} 3. Nf3 {[%emt 0:00:09]} Nf6 {[%emt 0:00:16]} 4. g3 {[%emt 0:01:15]} Be7 {[%emt 0:01:04]} 5. Bg2 {[%emt 0:00:19]} O-O {[%emt 0:00:14]} 6. O-O {[%emt 0:00:07]} c6 {[%emt 0:03:46]} 7. Nbd2 {[%emt 0:00:30]} Nbd7 {[%emt 0:06:42]} 8. Qc2 {[%emt 0:00:22]} b6 {[%emt 0:03:59]} 9. e4 {[%emt 0:00:18]} dxc4 {[%emt 0:12:39]} 10. Nxc4 {[%emt 0:03:59]} Bb7 {[%emt 0:02:13]} 11. Rd1 {[%emt 0:30:18]} h6 {[%emt 0:15:18]} 12. Bf4 {[%emt 0:14:06]} c5 {[%emt 0:14:06]} 13. d5 {[%emt 0:14:39]} exd5 {[%emt 0:03:07]} 14. exd5 {[%emt 0:01:25]} Bxd5 {[%emt 0:06:22]} 15. Rd2 {[%emt 0:06:37]} Qc8 {[%emt 0:07:21]} 16. Rad1 {[%emt 0:03:00]} Bc6 {[%emt 0:03:37]} 17. Nd6 {[%emt 0:02:42]} Bxd6 {[%emt 0:03:02]} 18. Rxd6 {[%emt 0:00:05]} Be4 {[%emt 0:04:03]} 19. Qc3 {[%emt 0:15:04]} Qb7 {[%emt 0:02:34]} 20. Qa3 {[%emt 0:04:25]} Rfe8 {[%emt 0:01:28]} 21. h3 {[%emt 0:00:12]} b5 {[%emt 0:03:08]} 22. Ne1 Bxg2 {[%emt 0:00:26]} 23. Nxg2 {[%emt 0:00:58]} Nf8 {[%emt 0:01:17]} 24. Qxc5 {[%emt 0:00:20]} Ne4 {[%emt 0:00:20]} 25. Qc2 {[%emt 0:01:02]} Nxd6 {[%emt 0:00:20]} 26. Rxd6 {[%emt 0:00:14]} Ne6 {[%emt 0:01:10]} 27. Be3 {[%emt 0:00:06]} Rad8 {[%emt 0:00:19]} 28. Rc6 {[%emt 0:00:57]} Rc8 {[%emt 0:00:19]} 29. Rxc8 {[%emt 0:00:04]} Rxc8 {[%emt 0:00:03]} 30. Qf5 {[%emt 0:00:02]} a6 {[%emt 0:00:50]} 31. Kh2 {[%emt 0:00:04]} Rd8 {[%emt 0:00:20]} 32. Nh4 Rd1 {[%emt 0:00:42]} 33. Nf3 {[%emt 0:00:38]} Qd5 {[%emt 0:00:16]} 0-1